fUSD/lending_fUSD_20250305
["ID","MTS","AMOUNT","RATE_DAILY","PERIOD"]
[355480723,1741199438409,-500.0,0.0001099,2]
[355480724,1741199438421,-500.0,0.0001099,2]
[355480725,1741199438431,-680.30500813,0.00010991,2]
[355480726,1741199438443,-684.34,0.00010991,2]
[355480727,1741199438453,-1013.59,0.00010991,2]
[355480728,1741199438463,-518.11,0.00010991,2]
[355480729,1741199438474,-500.0,0.00010991,2]
[355480730,1741199438485,-502.07789325,0.00010991,2]
[355480731,1741199438496,-502.92614776,0.00010991,2]
[355480732,1741199438507,-501.4767912,0.00010991,2]
[355480733,1741199438517,-502.72670866,0.00010991,2]
[355480734,1741199438529,-500.0,0.00010991,2]
[355480735,1741199438539,-500.0,0.00010991,2]
[355480736,1741199438551,-500.0,0.00010991,2]
[355480737,1741199438562,-886.54,0.00010991,2]
[355480738,1741199438572,-500.0,0.00010991,2]
[355480739,1741199438582,-502.82462378,0.00010991,2]
[355480740,1741199438593,-506.04,0.00010991,2]
[355480741,1741199438605,-500.0,0.00010991,2]
[355480742,1741199438615,-1237.71,0.00010991,2]
[355480743,1741199438626,-854.5,0.00010991,2]
[355480744,1741199438637,-514.39472823,0.00010991,2]
[355480745,1741199438648,-500.0,0.00010991,2]
[355480746,1741199438658,-500.0,0.00010991,2]
[355480747,1741199438669,-500.0,0.00010991,2]
[355480748,1741199438679,-500.0,0.00010991,2]
[355480749,1741199438690,-415.90356088,0.00010991,2]
[355480750,1741199438700,-500.0,0.00010991,2]
[355480751,1741199438711,-1285.41,0.00010991,2]
[355480752,1741199438722,-500.0,0.00010991,2]
[355480753,1741199438732,-907.5,0.00010991,2]
[355480754,1741199438742,-500.0,0.00010991,2]
[355480755,1741199438751,-500.0,0.00010991,2]
[355480756,1741199438761,-537.06924038,0.00010991,2]
[355480757,1741199438771,-500.0,0.00010991,2]
[355480758,1741199438781,-643.51,0.00010991,2]
[355480759,1741199438791,-621.1,0.00010991,2]
[355480760,1741199438800,-500.0,0.00010991,2]
[355480761,1741199438810,-500.0,0.00010991,2]
[355480762,1741199438820,-500.0,0.00010991,2]
[355480763,1741199438830,-500.0,0.00010991,2]
[355480764,1741199438840,-500.0,0.00010991,2]
[355480765,1741199438850,-717.47,0.00010991,2]
[355480766,1741199438860,-779.22,0.00010991,2]
[355480767,1741199438871,-500.0,0.00010991,2]
[355480768,1741199438881,-712.48,0.00010991,2]
[355480769,1741199438892,-610.3998361,0.00010991,2]
[355480770,1741199438903,-500.0,0.00010991,2]
[355480771,1741199438913,-500.0,0.00010991,2]
[355480772,1741199438924,-682.93,0.00010991,2]
[355480773,1741199438935,-500.0,0.00010991,2]
[355480774,1741199438946,-500.36825461,0.00010991,2]
[355480775,1741199438956,-500.0,0.00010991,2]
[355480776,1741199438968,-500.0,0.00010991,2]
[355480777,1741199438979,-525.8,0.00010991,2]
[355480778,1741199438992,-500.0,0.00010991,2]
[355480779,1741199439003,-161.03077709,0.00010991,2]
[355480780,1741199439013,-500.0,0.00010991,2]
[355480781,1741199439024,-500.0,0.00010991,2]
[355480782,1741199439034,-371.97798323,0.00010991,2]
[355480783,1741199439045,-500.0,0.00010991,2]
[355480784,1741199439056,-643.49,0.00010991,2]
[355480785,1741199439068,-500.0,0.00010991,2]
[355480786,1741199439079,-500.0,0.00010991,2]
[355480787,1741199439090,-770.92,0.00010991,2]
[355480788,1741199439101,-501.4285939,0.00010991,2]
[355480789,1741199439111,-500.0,0.00010991,2]
[355480790,1741199439124,-500.0,0.00010991,2]
[355480791,1741199439134,-500.0,0.00010991,2]
[355480792,1741199439145,-500.0,0.00010991,2]
[355480793,1741199439156,-500.49244536,0.00010991,2]
[355480794,1741199439166,-500.0,0.00010991,2]
[355480795,1741199439176,-500.0,0.00010991,2]
[355480796,1741199439187,-500.0,0.00010991,2]
[355480797,1741199439198,-500.0,0.00010991,2]
[355480798,1741199439208,-500.0,0.00010991,2]
[355480799,1741199439218,-500.0,0.00010991,2]
[355480800,1741199439228,-500.0,0.00010991,2]
[355480801,1741199439239,-500.0,0.00010991,2]
[355480802,1741199439249,-501.44516207,0.00010991,2]
[355480803,1741199439259,-500.0,0.00010991,2]
[355480804,1741199439270,-562.29,0.00010991,2]
[355480805,1741199439281,-664.78,0.00010991,2]
[355480806,1741199439291,-500.0,0.00010991,2]
[355480807,1741199439302,-203.133707,0.00010991,2]
[355480808,1741199439313,-500.0,0.00010991,2]
[355480809,1741199439323,-700.250294,0.00010991,2]
[355480810,1741199439333,-771.98,0.00010991,2]
[355480811,1741199439344,-500.0,0.00010991,2]
[355480812,1741199439355,-602.05,0.00010991,2]
[355480813,1741199439366,-500.0,0.00010991,2]
[355480815,1741199439378,-500.0,0.00010991,2]
[355480817,1741199439388,-950.583968,0.00010991,2]
[355480819,1741199439399,-500.0,0.00010991,2]
[355480821,1741199439409,-500.0,0.00010991,2]
[355480824,1741199439419,-169.91018344,0.00010991,2]
[355480826,1741199439429,-516.70744399,0.00010991,2]
[355480828,1741199439440,-500.0,0.00010991,2]
[355480830,1741199439451,-515.58438637,0.00010991,2]
[355480832,1741199439461,-166.172753,0.00010991,2]
[355480834,1741199439472,-465.03725061,0.00010991,2]
[355480836,1741199439482,-550.59,0.00010991,2]
[355480838,1741199439492,-153.731832,0.00010991,2]
[355480840,1741199439502,-500.0,0.00010991,2]
[355480843,1741199439512,-580.02,0.00010991,2]
[355480845,1741199439523,-500.0,0.00010991,2]
[355480847,1741199439534,-500.0,0.00010991,2]
[355480849,1741199439545,-1020.56,0.00010991,2]
[355480851,1741199439555,-500.0,0.00010991,2]
[355480853,1741199439565,-500.0,0.00010991,2]
[355480855,1741199439576,-684.37,0.00010991,2]
[355480857,1741199439586,-500.0,0.00010991,2]
[355480859,1741199439596,-500.0,0.00010991,2]
[355480861,1741199439607,-500.0,0.00010991,2]
[355480863,1741199439617,-500.0,0.00010991,2]
[355480865,1741199439628,-500.0,0.00010991,2]
[355480868,1741199439639,-500.0,0.00010991,2]
[355480870,1741199439649,-664.19,0.00010991,2]
[355480872,1741199439660,-521.3396013,0.00010991,2]
[355480874,1741199439671,-500.0,0.00010991,2]
[355480876,1741199439682,-500.0,0.00010991,2]
[355480878,1741199439693,-508.23334379,0.00010991,2]
[355480880,1741199439703,-897.07,0.00010991,2]
[355480883,1741199439714,-1009.13,0.00010991,2]
[355480885,1741199439725,-501.01815665,0.00010991,2]
[355480887,1741199439736,-501.12856803,0.00010991,2]
[355480889,1741199439747,-500.0,0.00010991,2]
[355480891,1741199439758,-500.0,0.00010991,2]
[355480893,1741199439768,-311.98092046,0.00010991,2]
[355480943,1741199440228,-838.3,0.00010991,2]
[355480947,1741199440257,-500.0,0.00010991,2]
[355480950,1741199440276,-506.46482336,0.00010991,2]
[355480952,1741199440286,-998.84,0.00010991,2]
[355480954,1741199440296,-500.0,0.00010991,2]
[355480956,1741199440305,-502.41839032,0.00010991,2]
[355480958,1741199440315,-696.95,0.00010991,2]
[355480960,1741199440324,-500.0,0.00010991,2]
[355480962,1741199440333,-500.0,0.00010991,2]
[355480964,1741199440343,-500.0,0.00010991,2]
[355480966,1741199440353,-500.0,0.00010991,2]
[355480968,1741199440362,-798.17,0.00010991,2]
[355480970,1741199440372,-500.0,0.00010991,2]
[355480972,1741199440381,-500.0,0.00010991,2]
[355480974,1741199440391,-886.93,0.00010991,2]
[355480976,1741199440401,-500.0,0.00010991,2]
[355480978,1741199440410,-501.2,0.00010991,2]
[355480980,1741199440419,-500.0,0.00010991,2]
[355480982,1741199440429,-500.0,0.00010991,2]
[355480984,1741199440438,-500.0,0.00010991,2]
[355480986,1741199440447,-554.45,0.00010991,2]
[355480988,1741199440457,-500.0,0.00010991,2]
[355480990,1741199440466,-500.0,0.00010991,2]
[355480992,1741199440475,-500.0,0.00010991,2]
[355480994,1741199440485,-500.0,0.00010991,2]
[355480996,1741199440495,-910.15,0.00010991,2]
[355480998,1741199440504,-724.62,0.00010991,2]
[355481000,1741199440514,-500.0,0.00010991,2]
[355481002,1741199440523,-500.0,0.00010991,2]
[355481004,1741199440532,-503.04910637,0.00010991,2]
[355481006,1741199440542,-500.0,0.00010991,2]
[355481008,1741199440551,-500.0,0.00010991,2]
[355481010,1741199440561,-500.0,0.00010991,2]
[355481012,1741199440571,-973.94,0.00010991,2]
[355481014,1741199440580,-500.0,0.00010991,2]
[355481016,1741199440590,-860.74,0.00010991,2]
[355481018,1741199440599,-500.0,0.00010991,2]
[355481020,1741199440609,-500.0,0.00010991,2]
[355481022,1741199440620,-591.04,0.00010991,2]
[355481024,1741199440629,-500.0,0.00010991,2]
[355481026,1741199440639,-500.0,0.00010991,2]
[355481028,1741199440649,-500.0,0.00010991,2]
[355481030,1741199440658,-500.0,0.00010991,2]
[355481032,1741199440668,-1004.18,0.00010991,2]
[355481034,1741199440677,-500.0,0.00010991,2]
[355481036,1741199440687,-500.0,0.00010991,2]
[355481038,1741199440696,-613.37,0.00010991,2]
[355481040,1741199440705,-495.25336926,0.00010991,2]
[355481042,1741199440715,-500.0,0.00010991,2]
[355481044,1741199440724,-707.25,0.00010991,2]
[355481046,1741199440733,-500.0,0.00010991,2]
[355481048,1741199440742,-502.01879298,0.00010991,2]
[355481050,1741199440751,-500.0,0.00010991,2]
[355481052,1741199440760,-500.0,0.00010991,2]
[355481054,1741199440770,-916.59,0.00010991,2]
[355481056,1741199440779,-842.94,0.00010991,2]
[355481058,1741199440788,-1379.79,0.00010991,2]
[355481060,1741199440797,-500.0,0.00010991,2]
[355481062,1741199440807,-759.14,0.00010991,2]
[355481064,1741199440816,-728.47,0.00010991,2]
[355481066,1741199440825,-500.0,0.00010991,2]
[355481068,1741199440835,-522.81,0.00010991,2]
[355481070,1741199440845,-1092.57,0.00010991,2]
[355481072,1741199440855,-500.0,0.00010991,2]
[355481074,1741199440864,-500.0,0.00010991,2]
[355481076,1741199440875,-791.28,0.00010991,2]
[355481078,1741199440884,-500.0,0.00010991,2]
[355481080,1741199440894,-6440.26,0.00010991,2]
[355481082,1741199440903,-577.43,0.00010991,2]
[355481084,1741199440912,-500.0,0.00010991,2]
[355481086,1741199440921,-500.0,0.00010991,2]
[355481088,1741199440931,-500.0,0.00010991,2]
[355481090,1741199440940,-500.0,0.00010991,2]
[355481092,1741199440949,-617.43,0.00010991,2]
[355481094,1741199440959,-500.0,0.00010991,2]
[355481096,1741199440968,-800.32,0.00010991,2]
[355481098,1741199440978,-500.0,0.00010991,2]
[355481100,1741199440990,-1027.56,0.00010991,2]
[355481102,1741199440999,-500.0,0.00010991,2]
[355481104,1741199441009,-1166.36,0.00010991,2]
[355481106,1741199441018,-500.0,0.00010991,2]
[355481108,1741199441027,-500.0,0.00010991,2]
[355481110,1741199441038,-500.0,0.00010991,2]
[355481112,1741199441048,-740.29,0.00010991,2]
[355481114,1741199441057,-891.97,0.00010991,2]
[355481116,1741199441068,-872.99,0.00010991,2]
[355481118,1741199441078,-500.0,0.00010991,2]
[355481120,1741199441087,-1167.74,0.00010991,2]
[355481122,1741199441096,-500.0,0.00010991,2]
[355481124,1741199441106,-842.39,0.00010991,2]
[355481126,1741199441115,-749.36,0.00010991,2]
[355481128,1741199441127,-1722.86,0.00010991,2]
[355481130,1741199441136,-500.0,0.00010991,2]
[355481132,1741199441145,-1211.59,0.00010991,2]
[355481134,1741199441155,-1044.58,0.00010991,2]
[355481136,1741199441164,-500.0,0.00010991,2]
[355481138,1741199441173,-2482.23,0.00010991,2]
[355481140,1741199441183,-1548.23,0.00010991,2]
[355481142,1741199441192,-1910.9,0.00010991,2]
[355481144,1741199441202,-500.0,0.00010991,2]
[355481146,1741199441211,-1485.61,0.00010991,2]
[355481148,1741199441220,-1074.69,0.00010991,2]
[355481150,1741199441230,-500.0,0.00010991,2]
[355481153,1741199441239,-1180.56,0.00010991,2]
[355481155,1741199441248,-3568.93,0.00010991,2]
[355481157,1741199441258,-500.0,0.00010991,2]
[355481158,1741199441267,-596.05,0.00010991,2]
[355481160,1741199441277,-200.90828201,0.00010991,2]
[355481163,1741199441287,-1141.75,0.00010991,2]
[355481164,1741199441296,-576.97,0.00010991,2]
[355481166,1741199441306,-3722.18,0.00010991,2]
[355481168,1741199441315,-500.0,0.00010991,2]
[355481171,1741199441325,-500.0,0.00010991,2]
[355481173,1741199441334,-658.11,0.00010991,2]
[355481175,1741199441344,-851.42,0.00010991,2]
[355481179,1741199441354,-550.50885313,0.00010991,2]
[355481182,1741199441364,-3690.06,0.00010991,2]
[355481185,1741199441380,-4315.33,0.00010991,2]
[355481187,1741199441391,-1195.47,0.00010991,2]
[355481189,1741199441401,-665.89,0.00010991,2]
[355481191,1741199441411,-1806.86,0.00010991,2]
[355481192,1741199441421,-519.98965761,0.00010991,2]
[355481194,1741199441431,-713.88,0.00010991,2]
[355481196,1741199441441,-500.0,0.00010991,2]
[355481198,1741199441452,-581.33,0.00010991,2]
[355481200,1741199441461,-1067.71,0.00010991,2]
[355481202,1741199441472,-500.0,0.00010991,2]
[355481204,1741199441482,-1562.42,0.00010991,2]
[355481207,1741199441493,-627.77,0.00010991,2]
[355481209,1741199441503,-500.0,0.00010991,2]
[355481210,1741199441514,-569.48741098,0.00010991,2]
[355481212,1741199441524,-500.0,0.00010991,2]
[355481214,1741199441534,-1137.11,0.00010991,2]
[355481216,1741199441543,-500.0,0.00010991,2]
[355481218,1741199441553,-3511.35,0.00010991,2]
[355481220,1741199441564,-500.0,0.00010991,2]
[355481223,1741199441574,-525.26,0.00010991,2]
[355481225,1741199441584,-500.0,0.00010991,2]
[355481227,1741199441595,-500.0,0.00010991,2]
[355481228,1741199441606,-662.67,0.00010991,2]
[355481230,1741199441617,-501.29149454,0.00010991,2]
[355481233,1741199441632,-500.0,0.00010991,2]
[355481235,1741199441643,-1380.06,0.00010991,2]
[355481236,1741199441653,-1458.79,0.00010991,2]
[355481239,1741199441664,-500.0,0.00010991,2]
[355481241,1741199441674,-978.72,0.00010991,2]
[355481243,1741199441684,-500.0,0.00010991,2]
[355481244,1741199441695,-1087.34,0.00010991,2]
[355481247,1741199441705,-500.0,0.00010991,2]
[355481249,1741199441716,-500.0,0.00010991,2]
[355481251,1741199441726,-500.0,0.00010991,2]
[355481252,1741199441735,-500.0,0.00010991,2]
[355481255,1741199441745,-2012.96,0.00010991,2]
[355481257,1741199441754,-380.56932045,0.00010991,2]
[355481258,1741199441764,-500.0,0.00010991,2]
[355481261,1741199441774,-500.0,0.00010991,2]
[355481263,1741199441783,-500.0,0.00010991,2]
[355481265,1741199441794,-500.0,0.00010991,2]
[355481266,1741199441804,-1640.98,0.00010991,2]
[355481269,1741199441814,-502.39165517,0.00010991,2]
[355481270,1741199441824,-500.0,0.00010991,2]
[355481273,1741199441834,-908.04,0.00010991,2]
[355481274,1741199441843,-892.59,0.00010991,2]
[355481277,1741199441855,-1236.11,0.00010991,2]
[355481279,1741199441864,-816.79,0.00010991,2]
[355481281,1741199441875,-1704.03,0.00010991,2]
[355481283,1741199441884,-3504.28,0.00010991,2]
[355481285,1741199441896,-1063.7,0.00010991,2]
[355481287,1741199441906,-500.0,0.00010991,2]
[355481289,1741199441915,-500.0,0.00010991,2]
[355481291,1741199441925,-1569.0,0.00010991,2]
[355481293,1741199441935,-500.0,0.00010991,2]
[355481295,1741199441945,-500.0,0.00010991,2]
[355481297,1741199441955,-500.0,0.00010991,2]
[355481299,1741199441964,-2140.74,0.00010991,2]
[355481301,1741199441974,-1581.68,0.00010991,2]
[355481303,1741199441987,-500.0,0.00010991,2]
[355481305,1741199441997,-1206.27,0.00010991,2]
[355481307,1741199442007,-1153.66,0.00010991,2]
[355481309,1741199442016,-819.33,0.00010991,2]
[355481311,1741199442027,-813.03,0.00010991,2]
[355481313,1741199442036,-500.0,0.00010991,2]
[355481315,1741199442046,-500.0,0.00010991,2]
[355481317,1741199442055,-4261.06,0.00010991,2]
[355481319,1741199442067,-500.0,0.00010991,2]
[355481321,1741199442077,-500.0,0.00010991,2]
[355481323,1741199442087,-2408.85,0.00010991,2]
[355481325,1741199442098,-1681.87,0.00010991,2]
[355481327,1741199442107,-2272.75,0.00010991,2]
[355481329,1741199442117,-500.0,0.00010991,2]
[355481331,1741199442129,-772.44,0.00010991,2]
[355481333,1741199442138,-1114.92,0.00010991,2]
[355481335,1741199442147,-932.35,0.00010991,2]
[355481338,1741199442158,-1027.32,0.00010991,2]
[355481340,1741199442167,-500.0,0.00010991,2]
[355481341,1741199442176,-1405.47,0.00010991,2]
[355481344,1741199442186,-971.68,0.00010991,2]
[355481345,1741199442196,-960.71,0.00010991,2]
[355481348,1741199442206,-500.0,0.00010991,2]
[355481350,1741199442215,-942.88,0.00010991,2]
[355481352,1741199442225,-1276.07,0.00010991,2]
[355481354,1741199442234,-840.09,0.00010991,2]
[355481356,1741199442243,-7397.86,0.00010991,2]
[355481358,1741199442253,-500.0,0.00010991,2]
[355481360,1741199442262,-1587.71,0.00010991,2]
[355481362,1741199442271,-525.12,0.00010991,2]
[355481363,1741199442281,-500.0,0.00010991,2]
[355481364,1741199442291,-8951.66,0.00010991,2]
[355481365,1741199442300,-500.0,0.00010991,2]
[355481366,1741199442310,-910.62,0.00010991,2]
[355481367,1741199442320,-1270.77,0.00010991,2]
[355481368,1741199442330,-500.0,0.00010991,2]
[355481369,1741199442339,-871.78,0.00010991,2]
[355481370,1741199442349,-500.0,0.00010991,2]
[355481371,1741199442358,-500.0,0.00010991,2]
[355481372,1741199442367,-500.0,0.00010991,2]
[355481373,1741199442380,-1798.94,0.00010991,2]
[355481374,1741199442390,-856.73,0.00010991,2]
[355481375,1741199442400,-1071.47,0.00010991,2]
[355481376,1741199442410,-638.31,0.00010991,2]
[355481378,1741199442419,-1065.5,0.00010991,2]
[355481380,1741199442431,-1667.92,0.00010991,2]
[355481382,1741199442441,-1303.72,0.00010991,2]
[355481384,1741199442451,-195.29982307,0.00010991,2]
[355481386,1741199442461,-178.41907266,0.00010991,2]
[355481388,1741199442472,-500.0,0.00010991,2]
[355481390,1741199442481,-509.61617324,0.00010991,2]
[355481392,1741199442491,-500.0,0.00010991,2]
[355481394,1741199442501,-258.10047452,0.00010992,3]
[355481396,1741199442513,-261171.74045696,0.00010992,2]
[355481440,1741199442929,-125000.0,0.00010992,2]
[355481442,1741199442945,-46197.46852019,0.00010992,2]
[355481444,1741199442955,-501.25257774,0.00010992,2]
[355481446,1741199442964,-500.0,0.00010992,2]
[355481448,1741199442974,-500.0,0.00010992,2]
[355481450,1741199442984,-500.0,0.00010992,2]
[355481452,1741199442998,-500.0,0.00010992,2]
[355481454,1741199443008,-500.0,0.00010992,2]
[355481482,1741199443223,-500.0,0.00010992,2]
[355481484,1741199443233,-500.0,0.00010992,2]
[355481486,1741199443243,-500.0,0.00010992,2]
[355481489,1741199443252,-500.0,0.00010992,2]
[355481492,1741199443262,-500.0,0.00010992,2]
[355481494,1741199443271,-500.0,0.00010992,2]
[355481496,1741199443280,-500.0,0.00010992,2]
[355481498,1741199443290,-500.0,0.00010992,2]
[355481500,1741199443300,-500.0,0.00010992,2]
[355481502,1741199443310,-500.0,0.00010992,2]
[355481504,1741199443320,-500.0,0.00010992,2]
[355481506,1741199443330,-500.0,0.00010992,2]
[355481508,1741199443340,-500.0,0.00010992,2]
[355481510,1741199443350,-500.0,0.00010992,2]
[355481512,1741199443360,-500.0,0.00010992,2]
[355481514,1741199443370,-500.0,0.00010992,2]
[355481516,1741199443381,-500.0,0.00010992,2]
[355481518,1741199443392,-500.0,0.00010992,2]
[355481520,1741199443402,-500.0,0.00010992,2]
[355481523,1741199443412,-500.0,0.00010992,2]
[355481525,1741199443422,-513.58,0.00010992,2]
[355481527,1741199443432,-500.0,0.00010992,2]
[355481529,1741199443442,-500.0,0.00010992,2]
[355481531,1741199443451,-500.0,0.00010992,2]
[355481533,1741199443461,-500.0,0.00010992,2]
[355481534,1741199443471,-500.0,0.00010992,2]
[355481536,1741199443481,-606.49,0.00010992,2]
[355481538,1741199443490,-500.0,0.00010992,2]
[355481540,1741199443500,-500.0,0.00010992,2]
[355481543,1741199443510,-500.0,0.00010992,2]
[355481545,1741199443520,-500.0,0.00010992,2]
[355481547,1741199443530,-500.0,0.00010992,2]
[355481549,1741199443540,-500.0,0.00010992,2]
[355481551,1741199443550,-500.0,0.00010992,2]
[355481553,1741199443560,-500.0,0.00010992,2]
[355481555,1741199443570,-500.0,0.00010992,2]
[355481557,1741199443579,-500.0,0.00010992,2]
[355481559,1741199443590,-500.0,0.00010992,2]
[355481561,1741199443599,-500.0,0.00010992,2]
[355481563,1741199443610,-500.0,0.00010992,2]
[355481565,1741199443622,-500.0,0.00010992,2]
[355481567,1741199443632,-500.0,0.00010992,2]
[355481569,1741199443641,-500.0,0.00010992,2]
[355481571,1741199443651,-507.71,0.00010992,2]
[355481573,1741199443662,-500.0,0.00010992,2]
[355481575,1741199443671,-500.0,0.00010992,2]
[355481577,1741199443682,-500.0,0.00010992,2]
[355481579,1741199443691,-500.0,0.00010992,2]
[355481581,1741199443701,-500.0,0.00010992,2]
[355481583,1741199443711,-500.0,0.00010992,2]
[355481585,1741199443720,-500.0,0.00010992,2]
[355481587,1741199443730,-505.39623642,0.00010992,2]
[355481589,1741199443740,-500.0,0.00010992,2]
[355481591,1741199443750,-500.0,0.00010992,2]
[355481593,1741199443759,-500.0,0.00010992,2]
[355481595,1741199443769,-500.0,0.00010992,2]
[355481597,1741199443779,-620.71,0.00010992,2]
[355481599,1741199443788,-500.0,0.00010992,2]
[355481601,1741199443798,-500.0,0.00010992,2]
[355481603,1741199443808,-500.0,0.00010992,2]
[355481605,1741199443817,-500.0,0.00010992,2]
[355481607,1741199443827,-500.0,0.00010992,2]
[355481609,1741199443837,-500.0,0.00010992,2]
[355481611,1741199443846,-500.0,0.00010992,2]
[355481613,1741199443856,-500.0,0.00010992,2]
[355481616,1741199443865,-500.0,0.00010992,2]
[355481618,1741199443877,-500.0,0.00010992,2]
[355481620,1741199443887,-500.0,0.00010992,2]
[355481622,1741199443896,-500.0,0.00010992,2]
[355481624,1741199443906,-500.0,0.00010992,2]
[355481626,1741199443916,-500.0,0.00010992,2]
[355481628,1741199443926,-500.0,0.00010992,2]
[355481630,1741199443936,-500.0,0.00010992,2]
[355481632,1741199443945,-383.93400646,0.00010992,2]
[355481634,1741199443957,-500.0,0.00010992,2]
[355481636,1741199443967,-500.0,0.00010992,2]
[355481638,1741199443976,-500.0,0.00010992,2]
[355481640,1741199443987,-586.34,0.00010992,2]
[355481642,1741199444000,-500.0,0.00010992,2]
[355481644,1741199444009,-500.0,0.00010992,2]
[355481646,1741199444018,-500.0,0.00010992,2]
[355481648,1741199444029,-500.0,0.00010992,2]
[355481650,1741199444038,-495.19438091,0.00010992,2]
[355481652,1741199444047,-500.0,0.00010992,2]
[355481654,1741199444057,-500.0,0.00010992,2]
[355481656,1741199444067,-500.0,0.00010992,2]
[355481658,1741199444077,-548.13,0.00010992,2]
[355481660,1741199444087,-681.75,0.00010992,2]
[355481662,1741199444096,-500.0,0.00010992,2]
[355481664,1741199444105,-500.0,0.00010992,2]
[355481666,1741199444115,-500.0,0.00010992,2]
[355481668,1741199444127,-500.0,0.00010992,2]
[355481670,1741199444138,-500.0,0.00010992,2]
[355481672,1741199444147,-500.0,0.00010992,2]
[355481674,1741199444156,-500.0,0.00010992,2]
[355481676,1741199444166,-500.0,0.00010992,2]
[355481678,1741199444176,-500.0,0.00010992,2]
[355481680,1741199444186,-500.0,0.00010992,2]
[355481682,1741199444195,-500.0,0.00010992,2]
[355481684,1741199444205,-504.81133806,0.00010992,2]
[355481686,1741199444217,-500.0,0.00010992,2]
[355481688,1741199444228,-500.0,0.00010992,2]
[355481690,1741199444237,-500.0,0.00010992,2]
[355481692,1741199444247,-500.0,0.00010992,2]
[355481694,1741199444257,-500.0,0.00010992,2]
[355481696,1741199444267,-500.0,0.00010992,2]
[355481698,1741199444276,-500.0,0.00010992,2]
[355481700,1741199444285,-838.53,0.00010992,2]
[355481702,1741199444295,-500.0,0.00010992,2]
[355481704,1741199444305,-500.0,0.00010992,2]
[355481706,1741199444315,-500.0,0.00010992,2]
[355481708,1741199444324,-500.0,0.00010992,2]
[355481711,1741199444333,-500.0,0.00010992,2]
[355481712,1741199444343,-514.42880303,0.00010992,2]
[355481715,1741199444352,-500.0,0.00010992,2]
[355481717,1741199444361,-500.0,0.00010992,2]
[355481719,1741199444373,-500.0,0.00010992,2]
[355481721,1741199444383,-500.0,0.00010992,2]
[355481723,1741199444392,-500.0,0.00010992,2]
[355481725,1741199444402,-500.0,0.00010992,2]
[355481727,1741199444412,-500.0,0.00010992,2]
[355481729,1741199444422,-500.0,0.00010992,2]
[355481731,1741199444431,-500.0,0.00010992,2]
[355481733,1741199444441,-500.0,0.00010992,2]
[355481735,1741199444450,-500.0,0.00010992,2]
[355481737,1741199444460,-500.0,0.00010992,2]
[355481739,1741199444469,-500.0,0.00010992,2]
[355481741,1741199444479,-500.0,0.00010992,2]
[355481743,1741199444488,-500.0,0.00010992,2]
[355481745,1741199444498,-500.0,0.00010992,2]
[355481747,1741199444508,-500.0,0.00010992,2]
[355481749,1741199444517,-500.0,0.00010992,2]
[355481751,1741199444527,-583.16550435,0.00010992,2]